[Event "1st Serbian League 2022"]
[Site "Vrnjacka Banja"]
[Date "2022.09.21"]
[Round "2.15"]
[White "Tadic, Branko"]
[Black "Markus, Robert"]
[Result "0-1"]
[ECO "A49"]
[WhiteElo "2455"]
[BlackElo "2615"]
[Annotator "TA"]
[PlyCount "192"]
[EventDate "2022.09.20"]
[EventType "team-tourn"]
[EventCountry "SRB"]
[SourceTitle "playchess.com"]
[Source "ChessBase"]
[SourceQuality "1"]
[TimeControl "40/5400+30:1800+30"]

{[%evp 16,192,39,20,45,27,31,18,19,0,0,-4,6,0,36,-46,-40,-38,-45,-86,-55,-143,-142,-133,-80,-84,-81,-72,-78,-79,-84,-105,-111,-1695,605,-2600,8,-111,-62,-48,-41,-74,-81,-75,-58,-62,-33,-51,-49,-43,-43,-51,-41,-50,-49,-49,-45,-56,-56,-93,-56,-56,-53,-56,-56,-56,-56,-54,-68,-114,-125,-191,-195,-226,-226,-223,-222,-203,-196,-219,-196,-247,-247,-245,-226,-235,-233,-227,-221,-218,-195,-453,-218,-210,-200,-327,0,-223,-231,-296,-218,-436,-339,-315,0,-231,-164,-162,-160,-189,-135,-189,-174,-181,-181,-244,-197,-256,-254,-411,-254,-318,-315,-311,-300,-286,-278,-254,-196,-242,-105,-105,0,-414,-390,-326,0,-238,0,-219,-202,-204,-189,-189,-185,-179,-104,-196,-189,-172,-58,-58,-58,-84,-84,-84,-85,-86,-58,-58,0,-97,-103,-100,-81,-199,-184,-182,-182,-232,-225,-225,-208,-188,-150,-189,-170,-29997,-102]} 1. Nf3 {[%emt 0:06:47]} Nf6 {[%emt 0:00:08]} 2. d4 {[%emt 0:00:18]} d6 {[%emt 0:03:05]} 3. g3 {[%emt 0:03:16]} g6 {[%emt 0:00:36]} 4. Bg2 {[%emt 0:00:06]} Bg7 {[%emt 0:00:05]} 5. O-O {[%emt 0:00:10]} O-O {[%emt 0:00:06]} 6. Nc3 {[%emt 0:00:35]} c6 {[%emt 0:10:19]} 7. e4 {[%emt 0:01:15]} Bg4 {[%emt 0:00:09]} 8. h3 {[%emt 0:08:24]} Bxf3 {[%emt 0:00:06]} 9. Bxf3 {[%emt 0:00:06]} Nbd7 {[%emt 0:06:18]} 10. a4 {[%emt 0:07:21]} Qa5 {[%emt 0:09:04]} 11. Be3 {[%emt 0:21:14]} e5 {[%emt 0:03:54]} 12. d5 {[%emt 0:24:18]} cxd5 {[%emt 0:04:21]} 13. exd5 {[%emt 0:06:50]} Rfc8 {[%emt 0:29:47]} 14. g4 {[%emt 0:02:56]} e4 {[%emt 0:00:59]} 15. Nxe4 {[%emt 0:04:06]} (15. Bg2 $14) 15... Nxe4 $15 {[%emt 0:02:04]} 16. Bxe4 {[%emt 0:00:05]} Bxb2 {[%emt 0:03:34]} 17. Ra2 {[%emt 0:01:32]} Bg7 {[%emt 0:01:37]} 18. Qd2 {[%emt 0:05:13]} (18. Qd3 $15) 18... Bc3 $1 $17 {[%emt 0:01:52]} 19. Qe2 {[%emt 0:00:54]} Re8 {[%emt 0:01:52]} (19... a6 $142 20. Bg2 b5) 20. Bg2 $17 {[%emt 0:01:24]} a6 {[%emt 0:04:25]} 21. Qc4 {[%emt 0:00:56]} Rac8 {[%emt 0:05:14]} 22. Qb3 {[%emt 0:00:05]} Nc5 {[%emt 0:03:15]} 23. Bxc5 {[%emt 0:00:56]} Rxc5 {[%emt 0:00:06]} 24. Qb5 $2 {[%emt 0:03:43][%mdl 8192]} (24. Qxb7 $17 Bd4 25. Qd7) 24... b6 $4 {[%mdl 8192]} (24... axb5 $19 25. Rb1 bxa4) 25. Qxb6 $4 {[%emt 0:00:00][%mdl 8192]} (25. Qxe8+ $18 Kg7 26. Qe7) 25... Rc7 $2 {[%emt 0:01:40]} (25... Qxb6 $19 26. g5 Bb2) 26. Qb1 {[%emt 0:00:00]} (26. Qxa5 $11 Bxa5 27. Bf3) 26... Qc5 {[%emt 0:02:14]} ({Black should play} 26... Rc4 $17 27. Qb7 Bd4) 27. a5 $15 {[%emt 0:00:00]} Bxa5 {[%emt 0:00:44]} (27... Re2 {with more complications.} 28. Bf3 Rd2 29. Qb6 Bd4) 28. c4 {[%emt 0:00:11]} Rce7 {[%emt 0:00:52]} 29. Qd3 {[%emt 0:00:33]} Ra8 {[%emt 0:02:51]} 30. Bf3 {[%emt 0:00:28]} Bb6 {[%emt 0:00:36]} 31. Rb1 {[%emt 0:01:13]} Qc7 {[%emt 0:00:18]} 32. Kg2 {[%emt 0:00:55]} Bc5 {[%emt 0:00:35]} 33. Bd1 {[%emt 0:00:07]} Re1 {[%emt 0:01:07]} 34. Ba4 {[%emt 0:00:26]} Rxb1 {[%emt 0:00:07]} 35. Qxb1 {[%emt 0:00:01]} Rb8 {[%emt 0:01:41]} 36. Qc2 {[%emt 0:01:01]} Qe7 {[%emt 0:00:19]} 37. Qd3 {[%emt 0:01:01]} Qf6 {[%emt 0:00:27]} 38. Qf3 {[%emt 0:00:26]} Kg7 {[%emt 0:02:18]} 39. Qxf6+ {[%emt 0:00:27]} Kxf6 {[%emt 0:00:04]} 40. f4 {[%emt 0:00:35]} Rb4 {[%emt 0:00:35]} 41. g5+ {[%emt 0:30:06]} Kg7 {[%emt 0:30:05]} 42. Bd1 {[%emt 0:00:00]} (42. Bd7 $15 {should be considered.}) 42... Rxc4 $17 {[%emt 0:00:00]} 43. Rxa6 {[%emt 0:00:00]} (43. Kf3 $17) 43... Rxf4 $19 {[%emt 0:00:00]} 44. Bf3 {[%emt 0:00:00]} h6 {[%emt 0:00:00]} 45. gxh6+ {[%emt 0:00:00]} Kxh6 {[%emt 0:00:00]} 46. Ra2 {[%emt 0:00:00]} Rb4 {[%emt 0:00:00]} 47. Re2 {[%emt 0:00:00]} Bd4 {[%emt 0:00:00]} 48. Re4 {[%emt 0:00:00]} (48. Rd2 $142) 48... f5 $19 {[%emt 0:00:00]} 49. Re2 {[%emt 0:00:00]} Be5 {[%emt 0:00:00]} 50. Ra2 {[%emt 0:00:00]} Kg5 {[%emt 0:00:00]} 51. Bd1 {[%emt 0:00:00]} Rd4 {[%emt 0:00:00]} 52. Bf3 {[%emt 0:00:00]} Kh4 {[%emt 0:00:00]} 53. Rc2 $2 {[%emt 0:00:00]} (53. Be2) 53... Ra4 {[%emt 0:00:00]} (53... Rd3 $142 54. Rf2 Ra3) 54. Be2 {[%emt 0:00:32]} Kg5 {[%emt 0:00:00]} 55. Bd1 {[%emt 0:01:41]} (55. Rc4 $142 Ra5 56. h4+ Kh6 57. Kf2) 55... Rb4 $2 {[%emt 0:00:00]} ({Better is} 55... Ra1 $19 56. Bf3 Ra4) 56. Be2 $2 {[%emt 0:00:21]} (56. Ra2 $1 $11) 56... Rb3 $19 {[%emt 0:01:38]} 57. Bf3 {[%emt 0:00:07]} Ra3 {[%emt 0:01:36]} 58. Rf2 $2 {[%emt 0:00:40]} (58. Kf2) 58... Rd3 $19 {[%emt 0:01:41]} 59. Rf1 {[%emt 0:03:44]} Ra3 {[%emt 0:02:47]} 60. Rf2 $1 {[%emt 0:00:08]} Kf4 {[%emt 0:00:50]} 61. Bd1+ {[%emt 0:01:18]} Ke4 {[%emt 0:00:09]} 62. Bf3+ {[%emt 0:00:21]} Ke3 {[%emt 0:00:48]} (62... Kd4 $19 63. h4 Rd3) 63. Bh5 {[%emt 0:00:17]} (63. Bd1 $17 Kd4 64. Bf3) 63... Kd4 $19 {[%emt 0:00:07]} 64. Bf3 {[%emt 0:00:32]} g5 {[%emt 0:00:18]} 65. Re2 {[%emt 0:00:53]} (65. Rf1 $142) 65... Bf4 {[%emt 0:00:19]} 66. Rb2 {[%emt 0:01:32]} (66. Rf2 $142) 66... Be3 $19 {[%emt 0:00:40]} 67. Rc2 $2 {[%emt 0:00:51]} (67. Bh5 {keeps fighting.}) 67... Ke5 {[%emt 0:00:16]} ({Wrong is} 67... Bf4 $2 68. Re2 $19) 68. Rb2 {[%emt 0:00:20]} Bd4 {[%emt 0:00:33]} 69. Rd2 {[%emt 0:00:06]} Ra1 {[%emt 0:00:32]} 70. Kg3 {[%emt 0:00:35]} Be3 {[%emt 0:01:04]} 71. Rb2 {[%emt 0:00:21]} Bf4+ {[%emt 0:00:33]} 72. Kg2 {[%emt 0:00:02]} (72. Kf2 $142) 72... Ra3 {[%emt 0:00:22]} (72... Bc1 $19 {is more deadly.} 73. Re2+ Kf4) 73. Re2+ $17 {[%emt 0:00:19]} Kd4 {[%emt 0:00:06]} (73... Re3 $17 74. Kf2 Rxe2+ 75. Kxe2 Kd4) 74. Kf2 $2 {[%emt 0:00:48][%mdl 8192]} (74. Rb2 $1 $11) 74... Be3+ $19 {[%emt 0:01:32]} 75. Kg2 {[%emt 0:00:08]} Ke5 {[%emt 0:00:26]} 76. Rb2 $1 {[%emt 0:00:17]} Bd4 {[%emt 0:00:55]} 77. Rd2 $1 {[%emt 0:00:06]} Bc3 {[%emt 0:00:14]} 78. Rf2 {[%emt 0:00:13]} Ra4 {[%emt 0:00:49]} 79. Re2+ {[%emt 0:00:25] [#]} Kd4 $1 {[%emt 0:00:45]} 80. Rf2 {[%emt 0:01:37]} Rb4 {[%emt 0:00:18]} (80... Be1 $19 81. Re2 Ra1) 81. Re2 {[%emt 0:00:58]} (81. Bd1 $17) 81... Kd3 $19 {[%emt 0:00:07]} 82. Ra2 {[%emt 0:00:12]} g4 {[%emt 0:01:02]} (82... Rb1 $19 {Strongly threatening ...Ke3.} 83. Kg3 Be5+ 84. Kg2 Bd4 85. Ra3+ Bc3) 83. hxg4 $15 {[%emt 0:00:05]} fxg4 {[%emt 0:00:03]} 84. Be2+ {[%emt 0:01:22]} Ke3 {[%emt 0:00:10]} 85. Bd1 {[%emt 0:00:45]} Rd4 {[%emt 0:00:47]} 86. Be2 {[%emt 0:00:20]} Kf4 {[%emt 0:01:16]} 87. Rc2 {[%emt 0:00:22]} Ke3 {[%emt 0:00:23]} (87... Rd2 $15 88. Rxd2 Bxd2) 88. Kg3 {[%emt 0:01:18]} (88. Ra2 $11) 88... Be1+ $17 {[%emt 0:00:14]} ({But not} 88... Rxd5 $6 89. Bc4 Be5+ 90. Kxg4 Rd4+ 91. Kf5 $11) 89. Kg2 {[%emt 0:00:06]} Bh4 {[%emt 0:00:41]} 90. Bc4 {[%emt 0:00:45] [#]} (90. Bf1 $17) 90... Bf6 $1 $19 {[%emt 0:00:28]} 91. Re2+ {[%emt 0:00:31]} Kf4 {[%emt 0:00:06]} 92. Rc2 {[%emt 0:00:01]} Be5 {[%emt 0:00:32]} 93. Ba2 {[%emt 0:00:22]} Kg5 {[%emt 0:00:14]} 94. Bc4 {[%emt 0:00:07]} Kh4 {[%emt 0:00:14]} 95. Kf2 {[%emt 0:01:47]} Rd1 {[%emt 0:00:31]} 96. Be2 $2 {[%emt 0:00:26]} (96. Ke2 $19 Rd4 97. Ke3) 96... Bd4+ {[%emt 0:00:10]} 0-1

[Event "1st Serbian League 2022"]
[Site "Vrnjacka Banja"]
[Date "2022.09.21"]
[Round "2.16"]
[White "Kovacevic, Aleksandar"]
[Black "Nikolovski, Nikola"]
[Result "1-0"]
[ECO "B76"]
[WhiteElo "2471"]
[BlackElo "2359"]
[Annotator "TA"]
[PlyCount "103"]
[EventDate "2022.09.20"]
[EventType "team-tourn"]
[EventCountry "SRB"]
[SourceTitle "playchess.com"]
[Source "ChessBase"]
[SourceQuality "1"]
[TimeControl "40/5400+30:1800+30"]

{[%evp 25,103,41,43,43,78,80,100,96,105,102,89,64,65,56,63,64,64,64,64,64,64,64,62,62,62,62,62,54,100,91,108,110,152,101,90,47,64,64,74,71,151,143,198,198,191,173,173,181,228,221,226,222,374,368,5307,4947,29975,29976,29978,29979,29980,29981,29981,29982,29982,29983,29983,29984,29984,29985,29985,29986,29986,29985,29987,29988,29988,29989,29994,29995]} 1. e4 {[%emt 0:00:13]} c5 {[%emt 0:00:35]} 2. Nf3 {[%emt 0:00:16]} d6 {[%emt 0:00:33]} 3. d4 {[%emt 0:00:47]} cxd4 {[%emt 0:00:13]} 4. Nxd4 {[%emt 0:00:15]} Nf6 {[%emt 0:00:11]} 5. Nc3 {[%emt 0:00:08]} g6 {[%emt 0:01:31]} 6. Be3 {[%emt 0:00:30]} Bg7 {[%emt 0:00:28]} 7. f3 {[%emt 0:00:27]} Nc6 {[%emt 0:00:36]} 8. Qd2 {[%emt 0:00:19]} O-O {[%emt 0:00:18]} 9. O-O-O {[%emt 0:00:22]} d5 {[%emt 0:01:10]} 10. exd5 {[%emt 0:00:25]} Nxd5 {[%emt 0:00:33]} 11. Nxc6 {[%emt 0:00:18]} bxc6 {[%emt 0:00:13]} 12. Bd4 {[%emt 0:00:04]} e5 {[%emt 0:00:44]} 13. Bc5 {[%emt 0:00:15]} Re8 {[%emt 0:01:59] is cutting edge theory.} 14. Ne4 {[%emt 0:01:29] B76: Sicilian Dragon: Yugoslav Attack, 9 g4 and 9 0-0-0.} Qc7 {[%emt 0:02:03]} 15. h4 {[%emt 0:00:40][%cal Bh2h4,Bh4h5][%mdl 32]} f5 {[%emt 0:02:04]} 16. Nd6 {[%emt 0:02:02] White is better.} Rd8 {[%emt 0:00:18]} 17. Nxc8 {[%emt 0:00:43] White is much more active.} Raxc8 {[%emt 0:00:10]} 18. h5 {[%emt 0:00:44] aiming for hxg6.} Nb6 $1 {[%emt 0:02:12]} 19. Bxb6 {[%emt 0:00:31]} Rxd2 {[%emt 0:00:30]} 20. Bc4+ {[%emt 0:00:30]} Kf8 {[%emt 0:00:30]} 21. Bxc7 {[%emt 0:00:30] A strong pair of Bishops.} Rxd1+ {[%emt 0:00:30]} 22. Rxd1 {[%emt 0:09:12]} Rxc7 {[%emt 0:02:24]} 23. hxg6 $14 {[%emt 0:02:21][%mdl 4096] Endgame KRB-KRB} Bh6+ {[%emt 0:00:07]} 24. Kb1 {[%emt 0:00:15]} hxg6 {[%emt 0:00:08]} 25. Rd6 {[%emt 0:02:54]} Kg7 {[%emt 0:00:08]} 26. b4 {[%emt 0:04:58]} Rb7 {[%emt 0:42:41] [#]} (26... e4 $14) 27. c3 $146 {[%emt 0:08:44]} ({Predecessor:} 27. a3 a5 28. Kb2 axb4 29. a4 c5 30. a5 Bf4 31. Re6 {1-0 (43) Adarsh,T (2191)-Bossy,A (2191) Budapest 2021}) 27... a5 {[%emt 0:07:30]} 28. a3 {[%emt 0:01:26]} (28. Rxc6 $6 axb4 29. Kc2 Be3 $11) 28... axb4 {[%emt 0:14:42]} 29. axb4 {[%emt 0:14:47]} (29. cxb4 $142 Rc7 30. Re6) 29... Rc7 {[%emt 0:00:37]} 30. Kc2 {[%emt 0:10:29]} Bf4 {[%emt 0:03:28]} 31. Re6 {[%emt 0:06:20]} Kh6 {[%emt 0:04:52]} 32. Kb3 {[%emt 0:03:35] Black is now going downhill.} Kg7 {[%emt 0:04:36] [#]} (32... Kg5 $142) 33. g4 $1 {[%emt 0:04:28]} e4 {[%emt 0:06:17]} (33... Bh2 $16 34. gxf5 gxf5) 34. gxf5 $18 {[%emt 0:00:53]} ({And not} 34. fxe4 fxg4 35. e5 g5 $11) 34... gxf5 {[%emt 0:00:07]} 35. fxe4 {[%emt 0:00:18]} fxe4 {[%emt 0:00:05]} 36. Rxe4 {[%emt 0:00:25]} Bg5 {[%emt 0:01:42]} (36... Bd6 {is a better defense.} 37. Re6 Bf4) 37. Bf1 {[%emt 0:08:44]} Kf7 {[%emt 0:01:12]} 38. Bg2 {[%emt 0:00:25]} c5 $2 {[%emt 0:00:38]} (38... Re7 39. Rg4 Bf6) 39. b5 {[%emt 0:04:47]} c4+ $2 {[%emt 0:00:18]} (39... Rc8 40. Kc4 Rb8) 40. Rxc4 {[%emt 0:00:46]} Rxc4 {[%emt 0:00:50]} 41. Kxc4 {[%emt 0:30:04] KB-KB. White mates.} Bd2 {[%emt 0:26:47]} 42. Kd4 {[%emt 0:00:00]} Ke6 {[%emt 0:02:42] [#]} 43. c4 $1 {[%emt 0:00:00][%cal Bc3c4,Bc4c5,Bc5c6,Bc6c7][%mdl 32]} Be1 {[%emt 0:01:06]} 44. c5 {[%emt 0:00:00]} Bf2+ {[%emt 0:01:31]} 45. Kc4 {[%emt 0:00:00]} Kd7 {[%emt 0:00:31]} 46. b6 {[%emt 0:00:00]} Kc8 {[%emt 0:00:27]} 47. Kb5 {[%emt 0:00:00]} Kb8 {[%emt 0:00:11]} 48. c6 {[%emt 0:00:00]} Bg3 {[%emt 0:00:04]} 49. Kc4 {[%emt 0:00:00]} Bf4 {[%emt 0:00:38]} 50. Bh3 {[%emt 0:00:00]} Bg3 {[%emt 0:00:37]} 51. Kd5 {[%emt 0:00:00]} Ka8 {[%emt 0:01:02]} 52. c7 {[%emt 0:00:00] Weighted Error Value: White=0.05 (flawless) /Black=0.34} 1-0

[Event "1st Serbian League 2022"]
[Site "Vrnjacka Banja"]
[Date "2022.09.21"]
[Round "2.17"]
[White "Milenkovic, Mladen"]
[Black "Brenjo, Slavisa"]
[Result "1/2-1/2"]
[ECO "C45"]
[WhiteElo "2379"]
[BlackElo "2409"]
[Annotator "TA"]
[PlyCount "88"]
[EventDate "2022.09.20"]
[EventType "team-tourn"]
[EventCountry "SRB"]
[SourceTitle "playchess.com"]
[Source "ChessBase"]
[SourceQuality "1"]
[TimeControl "40/5400+30:1800+30"]

{[%evp 18,88,0,-3,16,9,12,8,16,18,30,27,30,22,31,31,41,37,56,43,41,40,85,85,85,85,83,75,73,86,78,87,86,35,40,45,75,75,62,29,44,44,44,44,44,44,44,25,25,25,44,25,75,75,75,75,75,75,75,75,75,75,75,75,75,44,44,44,44,44,81,81,81]} 1. e4 {[%emt 0:00:05]} e5 {[%emt 0:00:18]} 2. Nf3 {[%emt 0:00:09]} Nc6 {[%emt 0:00:23]} 3. d4 {[%emt 0:00:11]} exd4 {[%emt 0:00:10]} 4. Nxd4 {[%emt 0:00:09]} Nf6 {[%emt 0:01:03]} 5. Nxc6 {[%emt 0:00:10]} bxc6 {[%emt 0:00:22]} 6. e5 {[%emt 0:00:13]} Qe7 {[%emt 0:00:24]} 7. Qe2 {[%emt 0:00:11]} Nd5 {[%emt 0:00:28]} 8. c4 {[%emt 0:00:13]} Nb6 {[%emt 0:02:50]} 9. Nc3 {[%emt 0:00:23]} Qe6 {[%emt 0:09:24]} 10. Qe4 {[%emt 0:00:41]} d5 {[%emt 0:26:43] C45: Scotch Game.} 11. exd6 $1 {[%emt 0:00:43]} Bxd6 {[%emt 0:09:30]} 12. Bd3 {[%emt 0:00:31]} f5 {[%emt 0:02:02] The position is equal.} 13. Qxe6+ {[%emt 0:00:27]} Bxe6 {[%emt 0:00:16]} 14. b3 {[%emt 0:00:05]} O-O-O {[%emt 0:05:15] [#] aiming for ...Bb4.} 15. Bb2 {[%emt 0:07:50]} Nd7 {[%emt 0:09:41][%cal Bb6d7,Bd7e5,Be5g4,Bg4f2][%mdl 32] [#]} 16. O-O-O $146 {[%emt 0:10:42][%cal Ba1d1,Bd1e1,Be1e7][%mdl 32]} ({Predecessor:} 16. O-O Ne5 17. Bc2 Ng4 18. h3 Nf6 19. Rad1 Rhf8 20. Rfe1 Bd7 21. a3 a5 22. Na4 {½-½ (55) Moe,M (2227)-Rostgaard,T (2335) Copenhagen 2017}) 16... Ne5 {[%emt 0:02:25]} 17. Bc2 {[%emt 0:15:48] Black must now prevent Rhe1.} Ng4 {[%emt 0:17:30]} 18. Rde1 {[%emt 0:03:28]} Bd7 {[%emt 0:01:49]} 19. h3 {[%emt 0:05:26]} Nxf2 {[%emt 0:03:21]} 20. Rhf1 {[%emt 0:00:18]} Bf4+ {[%emt 0:00:29]} 21. Kb1 {[%emt 0:00:16]} Bd2 {[%emt 0:00:39]} 22. Re7 {[%emt 0:04:08]} Bxc3 {[%emt 0:00:05]} 23. Bxc3 {[%emt 0:00:51]} Ne4 {[%emt 0:00:07]} 24. Bxe4 {[%emt 0:01:16]} fxe4 {[%emt 0:00:07][%cal Bf5e4,Be4e3][%mdl 32]} 25. Bxg7 {[%emt 0:33:06] White has more active pieces.} (25. Rxg7 $16 e3 26. Kc1) 25... Rhe8 $14 {[%emt 0:00:20]} 26. Bf6 {[%emt 0:01:04]} Rxe7 {[%emt 0:00:52]} 27. Bxe7 {[%emt 0:00:02][%mdl 4096] Endgame KRB-KRB} Rg8 {[%emt 0:04:04]} 28. Rf2 {[%emt 0:02:36]} h5 {[%emt 0:01:41]} 29. Kc2 {[%emt 0:02:21]} e3 {[%emt 0:01:01]} 30. Re2 {[%emt 0:00:25]} Bf5+ {[%emt 0:00:09]} 31. Kc3 {[%emt 0:00:37]} Be4 {[%emt 0:00:16]} 32. h4 {[%emt 0:06:44]} Rg3 {[%emt 0:00:43]} 33. Bc5 {[%emt 0:02:45][%csl LRa7,LRe3]} Kb7 {[%emt 0:00:55]} 34. Bxe3 {[%emt 0:01:15]} c5 {[%emt 0:00:54]} (34... a5 $11 {keeps the balance.}) 35. Kd2 $16 {[%emt 0:01:40]} Rxg2 {[%emt 0:00:09]} 36. Rxg2 {[%emt 0:00:17]} Bxg2 {[%emt 0:00:05]} 37. Bxc5 {[%emt 0:00:03] KB-KB} a6 {[%emt 0:00:14]} 38. Kc3 {[%emt 0:00:16]} Bf3 {[%emt 0:00:16]} 39. Kb4 {[%emt 0:00:34]} Be4 {[%emt 0:00:10]} 40. Bf2 {[%emt 0:00:30]} Bb1 {[%emt 0:00:25]} 41. a4 {[%emt 0:30:11]} Bc2 {[%emt 0:30:31]} 42. Kc3 {[%emt 0:00:23]} Bd1 {[%emt 0:00:09]} 43. a5 {[%emt 0:00:09]} c6 {[%emt 0:00:32]} 44. b4 {[%emt 0:00:52]} Be2 {[%emt 0:00:11] Weighted Error Value: White=0.06 (flawless) /Black=0.08 (flawless)} 1/2-1/2

[Event "1st Serbian League 2022"]
[Site "Vrnjacka Banja"]
[Date "2022.09.21"]
[Round "2.18"]
[White "Omorjan, Dejan"]
[Black "Zlatanovic, Boroljub"]
[Result "1/2-1/2"]
[ECO "E92"]
[WhiteElo "2265"]
[BlackElo "2313"]
[Annotator "TA"]
[PlyCount "81"]
[EventDate "2022.09.20"]
[EventType "team-tourn"]
[EventCountry "SRB"]
[SourceTitle "playchess.com"]
[Source "ChessBase"]
[SourceQuality "1"]
[TimeControl "40/5400+30:1800+30"]

{[%evp 19,81,55,47,43,80,-2,10,12,11,12,5,0,0,0,0,-26,0,0,0,-514,-32,-58,-68,-70,-27,-226,-228,-239,-237,-358,-341,-322,-34,-28,-41,-29,0,-40,-22,-29,0,0,0,0,0,0,0,0,0,0,47,47,47,47,47,47,47,46,46,47,49,50,50,50]} 1. d4 {[%emt 0:00:04]} Nf6 {[%emt 0:00:11]} 2. c4 {[%emt 0:00:11]} g6 {[%emt 0:00:07]} 3. Nc3 {[%emt 0:00:08]} Bg7 {[%emt 0:00:07]} 4. e4 {[%emt 0:00:06]} d6 {[%emt 0:00:10]} 5. Be2 {[%emt 0:00:30]} O-O {[%emt 0:01:48]} 6. Be3 {[%emt 0:00:01]} e5 {[%emt 0:02:57]} 7. Nf3 {[%emt 0:05:11][%cal Bg1f3,Bf3d2,Bd2e4][%mdl 32]} Nc6 {[%emt 0:00:56][%cal Bb8c6,Bc6e7,Be7f5,Bf5d4][%mdl 32]} 8. d5 {[%emt 0:00:33]} Ne7 {[%emt 0:00:27]} 9. Nd2 {[%emt 0:00:09]} Ne8 {[%emt 0:00:07]} 10. b4 {[%emt 0:01:12]} f5 {[%emt 0:00:30]} 11. f3 {[%emt 0:00:19] E92: King's Indian: Classical: 6 Be2 e5: 7 dxe5, 7 Be3 and Petrosian System without 7...Nbd7.} Kh8 {[%emt 0:09:11]} 12. c5 {[%emt 0:11:32] White is more active.} (12. O-O $16) 12... fxe4 {[%emt 0:01:37]} 13. Ndxe4 {[%emt 0:15:02] The position is equal.} Nf5 {[%emt 0:02:07]} 14. Bg5 {[%emt 0:00:59] [#]} Nf6 $146 {[%emt 0:02:05]} ({Predecessor:} 14... Qd7 15. O-O Nd4 16. Bc4 h6 17. Be3 Nf5 18. Bf2 Qe7 19. a4 Bd7 20. Bb5 a6 21. Bxd7 Qxd7 22. cxd6 cxd6 {½-½ (33) Grunert,F (1918)-Heubusch,M (2030) Bayern 2019}) 15. Qd2 {[%emt 0:05:20]} a5 {[%emt 0:11:38]} 16. bxa5 {[%emt 0:09:13][%cal Oa5a6]} dxc5 {[%emt 0:03:31]} 17. Rb1 {[%emt 0:10:48]} Nd4 {[%emt 0:08:17]} 18. O-O {[%emt 0:14:24]} Rxa5 {[%emt 0:04:39]} 19. f4 $2 {[%emt 0:12:32][%mdl 8192]} (19. Bxf6 $11 Bxf6 20. Nxf6 Qxf6 21. Ne4 Nxe2+ 22. Qxe2) 19... exf4 $2 {[%emt 0:10:57]} (19... Nxe4 $19 20. Nxe4 Qxd5) 20. Rxf4 {[%emt 0:07:51]} Bf5 {[%emt 0:07:28]} 21. Rbf1 {[%emt 0:03:24]} Ra3 {[%emt 0:10:38] [#] aiming for ...Nxe4.} 22. g4 $2 {[%emt 0:01:26]} (22. Bc4 $11 {and White has nothing to worry.}) 22... Bxe4 $19 {[%emt 0:04:18]} 23. Nxe4 {[%emt 0:00:33]} Nxe4 {[%emt 0:00:54]} 24. Bxd8 {[%emt 0:00:29]} (24. Rxe4 {was worth a try.} Qxd5 25. Rxf8+ Bxf8 26. Re8) 24... Rxf4 {[%emt 0:06:58]} 25. Qe1 {[%emt 0:00:29]} Rxf1+ {[%emt 0:03:15]} (25... Rxa2 $2 26. Rxf4 Nxe2+ 27. Kf1 Nxf4 28. Qxe4 Ra1+ 29. Kf2 Bd4+ 30. Kg3 $18) (25... Nxe2+ $19 26. Qxe2 Bd4+ 27. Kg2 Re3) 26. Qxf1 $15 {[%emt 0:00:29] Bd3 is the strong threat.} Rxa2 {[%emt 0:01:09]} 27. Bd1 {[%emt 0:00:33]} Ra1 {[%emt 0:03:23] White must now prevent ...Kg8.} 28. Bxc7 {[%emt 0:00:27]} Nc3 {[%emt 0:00:57][%csl LRd1,LRd5] Pair of Knights!} 29. Qf7 $1 {[%emt 0:00:17]} Rxd1+ {[%emt 0:00:13]} (29... h6 $5 {[%cal Rc3d1]} 30. Qxg6 (30. Qe8+ $2 Kh7 $19) 30... Rxd1+ 31. Kg2 Rd2+ 32. Kh3 Re2 $17) 30. Kg2 {[%emt 0:00:35]} Rd2+ {[%emt 0:00:15]} (30... h6 $5 {[%cal Rd1d2]} 31. Be5 Bxe5 32. Qe8+ Kh7 33. Qxe5 g5 $11) 31. Kf1 {[%emt 0:00:32]} Rd1+ {[%emt 0:00:54]} 32. Kg2 {[%emt 0:00:07] Qe8+ would kill now.} Rd2+ {[%emt 0:01:15]} 33. Kf1 {[%emt 0:00:59] White threatens Qe8+ and mate.} Re2 {[%emt 0:01:30] Against Qe8+} 34. d6 {[%emt 0:00:31] Threatening mate with d7.} Nd1 {[%emt 0:02:06]} (34... Nc2 $1 $11 35. Kg1 Re1+ 36. Kg2 Re2+ 37. Kh1 Re1+ 38. Kg2 Re2+ 39. Kh1 Re1+ 40. Kg2) 35. d7 $14 {[%emt 0:00:15] White is slightly better.} Ne3+ {[%emt 0:00:08]} 36. Kg1 {[%emt 0:00:02]} Re1+ {[%emt 0:00:16]} 37. Kf2 {[%emt 0:00:01]} Rf1+ {[%emt 0:00:18]} (37... Re2+ {is a self mate.} 38. Kg3 Nef5+ 39. Kh3 Ne6 {[#]} 40. Qxe6 $3 {[%mdl 512]} Re3+ 41. Bg3 Bf8 42. d8=Q Rxg3+ 43. hxg3 Kg7 44. Qef6+ Kh6 45. Qdxf8+) 38. Kxe3 {[%emt 0:00:09] The board is on fire.} Rxf7 {[%emt 0:00:06]} 39. d8=Q+ {[%emt 0:00:07]} Rf8 {[%emt 0:00:01]} 40. Qd7 {[%emt 0:01:57][%mdl 1024] White has compensation.} Nc6 {[%emt 0:01:28]} 41. Bg3 {[%emt 0:03:41] Weighted Error Value: White=0.42/Black=0.31} 1/2-1/2